Cogmind - Beta 15 @@@ ROGUE MODE // 2025.09.06 @ 05:45:40 // Winter2019/RPGLIKE Player: Toaster Result: Destroyed by B-75 Beast with Heavy Plasma Cannon Performance ------------- Evolutions (4) 2000 Regions Visited (5) 1000 Robots Destroyed (107) 535 Value Destroyed (3650) 3650 Prototype IDs (28) 560 Alien Tech Used (0) 0 Bonus (318) 318 TOTAL SCORE: 8063 Bonus ------- High Alert Combat Kills 18 Registered with UFD 300 Cogmind --------- Core Integrity 0/900 Matter 280/300 Energy 471/485 System Corruption 2% Temperature Warm (147) Movement Walking (120) Location -6/Factory Parts ------- > --- POWER (2) -------- Deuterium Engine Fission Core > --- PROPULSION (3) --- Carbon-fiber Leg Carbon-fiber Leg Flexi-carbon Leg > --- UTILITY (5) ------ Improved Signal Interpreter Energy Filter Improved Particle Charger A0-MCA's Component Scanner > --- WEAPON (4) ------- Thermic Laser Thermic Laser Plasma Cannon Phase Cannon > --- INVENTORY (1) ---- EM Shield Peak State ------------ > --- POWER ------------ Deuterium Engine Fission Core > --- PROPULSION ------- Carbon-fiber Leg Carbon-fiber Leg Flexi-carbon Leg > --- UTILITY ---------- Improved Signal Interpreter Energy Filter Improved Particle Charger Expert System A0-MCA's Component Scanner > --- WEAPON ----------- Thermic Laser Thermic Laser Plasma Cannon Phase Cannon > --- INVENTORY -------- EM Shield [Rating: 66] Favorites ----------- Power Ion Engine Engine Ion Engine Power Core Fission Core Propulsion Aluminum Leg Leg Aluminum Leg Flight Unit VTOL Module Utility Shield Generator Device Shield Generator Processor A0-MCA's Component Scanner Protection Scrap Shield Weapon Makeshift Shrapnel Gun Energy Gun Thermic Laser Energy Cannon Beam Cannon Ballistic Gun Makeshift Shrapnel Gun Ballistic Cannon Battle Cannon Special Weapon CPS Tube Build | -11 -10 -10 -9 -9 -6 ------- Run | Yrd Mat Sub Rec Scr Fac Slots Evolved 10 | 2 4 1 1 1 1 Power 1 | . 1 . . . . Propulsion 2 | 1 1 . . . . Utility 4 | . 1 1 1 . 1 Weapon 3 | 1 1 . . 1 . Parts Attached 59 | 5 11 9 5 18 11 Power 5 | 1 1 . 1 1 1 Engine 4 | 1 1 . 1 1 . Core 1 | . . . . . 1 Reactor . | . . . . . . Propulsion 11 | 2 1 . 2 4 2 Treads . | . . . . . . Leg 8 | 2 1 . 2 1 2 Wheel . | . . . . . . Hover . | . . . . . . Flight 3 | . . . . 3 . Utility 16 | . 4 1 1 7 3 Device 8 | . 2 . 1 3 2 Storage . | . . . . . . Processor 3 | . . . . 2 1 Hackware . | . . . . . . Protection 5 | . 2 1 . 2 . Artifact . | . . . . . . Weapon 27 | 2 5 8 1 6 5 Energy Gun 12 | 2 2 2 . 3 3 Energy Cannon 3 | . 1 . . . 2 Ballistic Gun 9 | . 2 5 1 1 . Ballistic Cannon 2 | . . 1 . 1 . Launcher . | . . . . . . Special Weapon 1 | . . . . 1 . Impact Weapon . | . . . . . . Slashing Weapon . | . . . . . . Piercing Weapon . | . . . . . . Special Melee Weapon . | . . . . . . Unidentified Prototypes 2 | . 1 . . 1 . Parts Lost 1 | . . . . . 1 Power . | . . . . . . Propulsion . | . . . . . . Utility 1 | . . . . . 1 Weapon . | . . . . . . Highest Loss Streak 1 | . . . . . 1 To Critical Strikes . | . . . . . . Average Backups . | . . . . . . Power . | . . . . . . Propulsion . | . . . . . . Utility . | . . . . . . Weapon . | . . . . . . Tool/Special . | . . . . . . Unused Backups 7 | . 1 4 . 1 1 Power . | . . . . . . Propulsion . | . . . . . . Utility 2 | . . . . 1 1 Weapon 5 | . 1 4 . . . Tool/Special . | . . . . . . Average Slot Usage (%) 90 | . 98 89 90 82 98 Engine 15 | . 14 18 17 14 13 Leg 24 | . 28 27 26 20 21 Device 10 | . 6 9 9 12 13 Processor 4 | . . . . 5 16 Protection 7 | . 12 9 8 6 3 Energy Gun 8 | . 15 3 . 5 22 Energy Cannon 2 | . 9 . . . 5 Ballistic Gun 12 | . 9 20 17 10 . Ballistic Cannon 2 | . . 1 8 3 . Peak Build Rating 66 | 5 16 20 23 42 66 Average Rating 27 | 4 9 18 21 31 57 On Entrance 17 | . 5 16 20 23 42 Naked Turns . | . . . . . . Heaviest Build 49 | 9 26 39 41 45 49 Greatest Support 60 | 25 35 40 46 51 60 Greatest Overweight (x) 2 | 1 . . 1 2 1 Average Overweight (x) . | . . . . . . Largest Inventory Capacity 1 | 1 1 1 1 1 1 Average Capacity . | . 1 1 1 1 1 Most Carried 1 | . 1 1 1 1 1 Average Carried . | . . . . . . Final Capacity 1 | 1 1 1 1 1 1 Final Carried 1 | . . 1 . 1 1 Class Distribution -------------------- 29% | Hacker-Tank 24% | Tank 21% | Hacker-Gunner 9% | Hacker-Mutant 7% | Mutant 5% | Gunner Dominant Class ---------------- Mutant | -10/Materials Tank | -10/Subcaves Hacker-Tank | -9/Recycling Hacker-Tank | -9/Scraptown Hacker-Gunner | -6/Factory Resources | -11 -10 -10 -9 -9 -6 ----------- Run | Yrd Mat Sub Rec Scr Fac Matter Collected 1836 | 227 252 640 365 240 112 Remotely 110 | . . . 10 100 . Salvage Created 3490 | . 1070 631 520 . 1269 Parts 194 | . 58 46 24 . 66 Haulers Intercepted 1 | . 1 . . . . Recyclers Shooed 2 | . . . 1 . 1 Parts Field Recycled . | . . . . . . Retrieved Matter . | . . . . . . Parts Self-Destructed 31 | . . 31 . . . Prevented . | . . . . . . Kills | -11 -10 -10 -9 -9 -6 ------- Run | Yrd Mat Sub Rec Scr Fac Combat Hostiles Destroyed 87 | . 24 22 14 . 27 Guns 64 | . 18 22 12 . 12 Cannons 17 | . 5 . 2 . 10 AOE 3 | . . . . . 3 Classes Destroyed 18 | . 6 4 5 . 3 Worker 3 | . . . . . 3 Builder 1 | . . . 1 . . Tunneler 2 | . . . 1 . 1 Hauler 1 | . 1 . . . . Recycler 5 | . 3 . 1 . 1 Operator 2 | . 1 . . . 1 Turret 2 | . . 2 . . . Watcher 4 | . 3 . . . 1 Swarmer 22 | . 6 8 2 . 6 Grunt 33 | . 18 1 2 . 12 Brawler 2 | . . . . . 2 Protector 3 | . . . 3 . . Sentry 8 | . . 1 5 . 2 Demolisher 1 | . . . 1 . . Hunter 2 | . . . 1 . 1 Programmer 4 | . . . . . 4 Artisan 1 | . . 1 . . . Subdweller 12 | . . 12 . . . Best Kill Streak 9 | . 5 6 8 . 9 Combat Bots Only 7 | . 3 4 7 . 6 Max Kills in Single Turn 3 | . 2 2 3 . 3 Gunslinging 1 | . 1 . . . . Exploded 2 | . . . . . 2 Melee . | . . . . . . Uniques/NPCs Destroyed . | . . . . . . Combat | -11 -10 -10 -9 -9 -6 -------- Run | Yrd Mat Sub Rec Scr Fac Hostile Shots Fired 370 | . 55 91 17 . 207 Missed 130 | . 18 30 6 . 76 Hits 240 | . 37 61 11 . 131 Projectile 240 | . 37 61 11 . 131 AOE 2 | . . 1 1 . . Critical Strikes 7 | . . 1 3 . 3 Damage Taken 3140 | . 421 596 140 . 1983 Core 2275 | . 303 348 81 . 1543 Absorbed by Shields 296 | . 9 234 53 . . Redirected to Core 1943 | . 231 300 81 . 1331 Core Remaining (%) 100 | 100 . . . 100 . Volleys Fired 199 | . 50 87 18 . 44 Largest 4 | . 3 3 3 . 4 Hottest 335 | . 190 109 85 . 335 Shots Fired 538 | . 121 191 55 . 171 Gun 415 | . 90 165 36 . 124 Cannon 123 | . 31 26 19 . 47 Launcher . | . . . . . . Special . | . . . . . . Kinetic 231 | . 22 154 55 . . Thermal 307 | . 99 37 . . 171 Explosive . | . . . . . . Electromagnetic . | . . . . . . Robot Hit Streak 32 | . 23 14 16 . 32 Robot Miss Streak 5 | . 3 2 2 . 5 Penetration Max . | . . . . . . Secondary Targets 3 | . 1 . . . 2 Max Gunslinging Chain 1 | . 1 . . . 1 Shots Hit Robots 337 | . 78 107 35 . 117 Core Hits 233 | . 41 44 33 . 115 Critical Kills 4 | . 1 1 . . 2 Critical Parts Destroyed 1 | . . . 1 . . Critical Strikes 20 | . 6 1 1 . 12 Burn 15 | . 5 . . . 10 Meltdown 2 | . . . . . 2 Destroy 3 | . 1 1 1 . . Melee Attacks . | . . . . . . Impact . | . . . . . . Slashing . | . . . . . . Piercing . | . . . . . . Sneak Attacks . | . . . . . . Combat Hostiles . | . . . . . . Follow-up Attacks . | . . . . . . Damage Inflicted 7441 | 3 1275 1580 943 . 3640 Guns 5085 | . 872 1364 653 . 2196 Cannons 1694 | . 366 216 157 . 955 Explosions 428 | . . . . . 428 Melee . | . . . . . . Ramming 234 | 3 37 . 133 . 61 Kinetic 2426 | . 232 1384 810 . . Thermal 4353 | . 1006 196 . . 3151 Explosive 325 | . . . . . 325 Electromagnetic 103 | . . . . . 103 Impact . | . . . . . . Slashing . | . . . . . . Piercing . | . . . . . . Highest Corruption 2 | . 1 1 1 . 2 Average Corruption 1 | . 1 1 1 . 1 Corruption Purged . | . . . . . . Corruption Blocked . | . . . . . . Effects 43 | . . 19 12 . 12 Message Errors 11 | . . 5 3 . 3 Matter Fused 9 | . . 5 3 . 1 Heat Flow Errors 4 | . . 1 1 . 2 Energy Discharges 8 | . . 4 1 . 3 Data Loss (minor) 2 | . . 2 . . . Data Loss (major) 4 | . . 1 3 . . Misfires 5 | . . 1 1 . 3 Overload Shots . | . . . . . . Overflow Damage 34 | . 4 . . . 30 Projectiles 11 | . 4 . . . 7 Explosions 23 | . . . . . 23 Melee . | . . . . . . Knockbacks 8 | . 1 3 4 . . Impact 3 | . 1 . 2 . . Kinetic 5 | . . 3 2 . . Secondary . | . . . . . . Self-Inflicted Damage . | . . . . . . Shots . | . . . . . . Rammed . | . . . . . . Targets Rammed 27 | 1 7 . 12 . 7 Kicked 27 | 1 7 . 12 . 7 Crushed . | . . . . . . Highest Temperature 439 | . 240 175 264 . 439 Average Temperature 70 | . 60 109 55 . 86 Received Heat Transfer 692 | . 159 119 57 . 357 Effects 5 | . . . . . 5 Shutdowns 2 | . . . . . 2 Interference 3 | . . . . . 3 Siege Activations . | . . . . . . Martial Activations . | . . . . . . Shielding Activations . | . . . . . . Robots Disrupted . | . . . . . . Combat Hostiles . | . . . . . . Robots Corrupted 1 | . . . 1 . . Combat Hostiles . | . . . . . . Parts Fried 4 | . . . 4 . . Impact Corruptions 1 | . . . 1 . . Robots Melted 3 | . 1 . . . 2 Combat Hostiles 3 | . 1 . . . 2 Parts Melted 18 | . 5 . . . 13 Heat Transferred 8822 | . 2849 286 . . 5687 Parts Sabotaged . | . . . . . . Parts Stolen . | . . . . . . Parts Stripped . | . . . . . . Power Chain Reactions . | . . . . . . Alert | -11 -10 -10 -9 -9 -6 ------- Run | Yrd Mat Sub Rec Scr Fac Maximum Alert Level 2 | . 1 . 1 . 2 Low Security (%) 80 | 100 83 . 81 . 76 Level 1 18 | . 16 . 18 . 21 Level 2 . | . . . . . 1 Level 3 . | . . . . . . Level 4 . | . . . . . . Level 5 . | . . . . . . High Security . | . . . . . . Max Security . | . . . . . . Peak Influence 501 | . 253 . 325 . 501 Initial 101 | . . . 101 . . Average 99 | . 89 . 102 . 110 Influence Increases 2577 | . 784 310 595 . 888 Destroy 0b10 Robot/C 1480 | . 480 240 220 . 540 Destroy 0b10 Robot/NC 110 | . 40 . 35 . 35 Destroy Leader 280 | . 128 10 . . 142 Successful Hack 80 | . 26 . 6 . 48 Select Force Hacks 440 | . 110 . 330 . . Disable Machine 105 | . . . . . 105 Destroy Structure 22 | . . . 4 . 18 Lose Combat Pursuer 60 | . . 60 . . . Influence Decreases 2159 | . 555 327 511 296 470 Entered New Map 518 | . . 111 111 296 . Time Decay 1481 | . 555 216 400 . 310 Lost Part 10 | . . . . . 10 Purge Threat 150 | . . . . . 150 Squads Dispatched 20 | . 9 . . . 11 Investigation 8 | . 8 . . . . Extermination 3 | . . . . . 3 Reinforcement 2 | . 1 . . . 1 Assault . | . . . . . . Garrison 7 | . . . . . 7 Intercept . | . . . . . . Searches Triggered . | . . . . . . Construction Impeded . | . . . . . . Haulers Reinforced . | . . . . . . Active Scanning Responses . | . . . . . . Cargo Convoy Interrupts . | . . . . . . Stealth | -11 -10 -10 -9 -9 -6 --------- Run | Yrd Mat Sub Rec Scr Fac Distress Signals 4 | . 1 . . . 3 Communications Jammed . | . . . . . . Distress Signals . | . . . . . . Times Spotted 108 | . 27 30 5 . 46 Peak Tracking Total 8 | . 4 6 2 . 8 Tactical Retreats 2 | . . 2 . . . Traps | -11 -10 -10 -9 -9 -6 ------- Run | Yrd Mat Sub Rec Scr Fac Traps Triggered 5 | . 5 . . . . Indirectly . | . . . . . . Trap Hack Attempts . | . . . . . . Triggered . | . . . . . . Disarmed . | . . . . . . Reprogrammed . | . . . . . . Reused . | . . . . . . Traps Extracted . | . . . . . . Installed . | . . . . . . Triggered . | . . . . . . Machines | -11 -10 -10 -9 -9 -6 ---------- Run | Yrd Mat Sub Rec Scr Fac Machines Disabled 9 | . . 2 . . 7 Max in Single Turn 4 | . . 1 . . 4 Machines Repaired . | . . . . . . Machines Dismantled . | . . . . . . Machines Sabotaged 4 | . 1 . 3 . . Overloaded Fab Kills . | . . . . . . Hacking | -11 -10 -10 -9 -9 -6 --------- Run | Yrd Mat Sub Rec Scr Fac Machines Accessed 28 | . 9 . 12 1 6 Terminals 19 | . 7 . 6 . 6 Fabricators . | . . . . . . Repair Stations . | . . . . . . Recycling Units 8 | . 2 . 6 . . Scanalyzers . | . . . . . . Garrison Access . | . . . . . . Total Hacks 65 | . 24 . 28 1 12 Successful 50 | . 17 . 25 1 7 Failed 15 | . 7 . 3 . 5 Catastrophic 1 | . . . . . 1 Database Lockouts . | . . . . . . Manual 42 | . 17 . 20 . 5 Terminals 49 | . 22 . 15 . 12 Fabricators . | . . . . . . Repair Stations . | . . . . . . Recycling Units 15 | . 2 . 13 . . Scanalyzers . | . . . . . . Garrison Access . | . . . . . . Terminal Hacks 13 | . 6 . 2 1 4 Robot Analysis 1 | . 1 . . . . Prototype ID Bank 1 | . 1 . . . . Branch Access Points 1 | . . . . . 1 Terminal Index 2 | . 1 . 1 . . Alert Level 2 | . 1 . 1 . . Unreport Threat 1 | . . . . . 1 Locate Traps 3 | . 1 . . . 2 Registered Prototypes 1 | . 1 . . . . Proto ID Catalog 1 | . . . . 1 . Fabricator Hacks . | . . . . . . Repair Station Hacks . | . . . . . . Recycling Unit Hacks 7 | . . . 7 . . Report Inventory 6 | . . . 6 . . Retrieve Components 1 | . . . 1 . . Scanalyzer . | . . . . . . Garrison Access Hacks . | . . . . . . Unauthorized Hacks 30 | . 11 . 16 . 3 Terminals 22 | . 9 . 10 . 3 Botnet 15 | . 6 . 6 . 3 Sabotage 7 | . 3 . 4 . . Fabricators . | . . . . . . Repair Stations . | . . . . . . Recycling Units 8 | . 2 . 6 . . Tunnel 8 | . 2 . 6 . . Scanalyzers . | . . . . . . Garrison Access . | . . . . . . Data Cores Recovered 2 | . 1 . . . 1 Used . | . . . . . . Hacking Detections 15 | . 5 . 4 . 6 Full Trace Events 2 | . 1 . 1 . . Feedback Events 1 | . 1 . . . . Corruption 1 | . 1 . . . . Feedback Blocked . | . . . . . . Robot Schematics Acquired . | . . . . . . Robots Built . | . . . . . . Authchips . | . . . . . . Time . | . . . . . . Total Robot Build Rating . | . . . . . . Part Schematics Acquired . | . . . . . . Parts Built . | . . . . . . Authchips . | . . . . . . Time . | . . . . . . Total Part Build Rating . | . . . . . . Parts Repaired . | . . . . . . Time . | . . . . . . Parts Recycled . | . . . . . . Recycled Matter . | . . . . . . Retrieved Matter . | . . . . . . Retrieved Components 3 | . . . 3 . . Parts Scanalyzed . | . . . . . . Part Schematics Acquired . | . . . . . . Parts Damaged . | . . . . . . Bothacking | -11 -10 -10 -9 -9 -6 ------------ Run | Yrd Mat Sub Rec Scr Fac Used RIF Installer . | . . . . . . Robots Hacked . | . . . . . . Non-combat . | . . . . . . Combat . | . . . . . . Robot Hacks Applied . | . . . . . . Relay Couplers Released . | . . . . . . Fabnet Peak Effective % . | . . . . . . Robots Rewired . | . . . . . . Allies Hacked . | . . . . . . Hacks Repelled . | . . . . . . Allies | -11 -10 -10 -9 -9 -6 -------- Run | Yrd Mat Sub Rec Scr Fac Total Allies . | . . . . . . Largest Group . | . . . . . . Highest-Rated Group . | . . . . . . Highest-Rated Ally . | . . . . . . Total Orders . | . . . . . . Ally Attacks . | . . . . . . Total Damage . | . . . . . . Kills . | . . . . . . Allies Corrupted . | . . . . . . Allies Melted . | . . . . . . Intel | -11 -10 -10 -9 -9 -6 ------- Run | Yrd Mat Sub Rec Scr Fac Active Infowar (turns) . | . . . . . . Robot Analysis Total 1 | . 1 . . . . Derelict Logs Recovered 3 | . . 2 . 1 . Drone Launches . | . . . . . . Drone Recoveries . | . . . . . . Exploration | -11 -10 -10 -9 -9 -6 ------------- Run | Yrd Mat Sub Rec Scr Fac Turns Passed 10964 | 71 1689 2273 1714 3560 1657 Spaces Moved 8594 | 60 1176 1626 1299 3525 908 Core 36 | 13 . . . 23 . Treads . | . . . . . . Legs 7616 | 47 1176 1626 1299 2560 908 Wheels . | . . . . . . Hover . | . . . . . . Flight 942 | . . . . 942 . Fastest Speed 30 | 50 120 120 120 30 120 Average Speed 111 | 105 120 120 120 98 120 Slowest Speed 190 | 120 120 120 190 190 190 Overloaded Moves . | . . . . . . Propulsion Burnouts . | . . . . . . Robots Hopped 2 | . . . . 2 . Potential Cave-ins . | . . . . . . Cave-ins Triggered . | . . . . . . Exploration Rate (%) 65 | 4 96 79 99 89 24 Regions Visited 5 Branch Regions 3 Pre-discovered Areas 10 | . 2 2 6 . . Known Exits Taken . | . . . . . . Unknown Exits Taken 5 | 1 1 1 1 1 . Scrap Searched 18 | . . 9 . 9 . Spaces Dug 2 | . . . . . 2 Terrain Destroyed 27 | . . 2 4 . 21 Melee . | . . . . . . Projectile 20 | . . 2 4 . 14 AOE 7 | . . . . . 7 Terrain Rammed . | . . . . . . Walls Destroyed . | . . . . . . Machines Disabled . | . . . . . . Actions | -11 -10 -10 -9 -9 -6 --------- Run | Yrd Mat Sub Rec Scr Fac Total 9600 | 65 1347 1801 1412 3607 1368 Wait 504 | . 55 36 47 23 343 Move 8586 | 59 1175 1625 1298 3521 908 Hop 1 | . . . . 1 . Pick Up 20 | . 5 7 1 5 2 Fast Attach 58 | 5 11 6 4 23 9 Attach 14 | . 5 1 2 4 2 Detach 15 | . 4 1 2 5 3 Swap 3 | . 1 2 . . . Drop 58 | . 8 12 5 25 8 Fire 199 | . 50 87 18 . 44 Melee . | . . . . . . Ram . | . . . . . . Kick 27 | 1 7 . 12 . 7 Crush . | . . . . . . Escape Stasis . | . . . . . . Rewire . | . . . . . . Trap . | . . . . . . Miscellaneous 115 | . 26 24 23 . 42 Route ------- -11/Scrapyard -10/Materials (discovered 6 exits: [*Mat x3] / [*Min x2] / [*Sub]) -10/Subcaves (discovered 3 exits: [*Mat x2] / *Rec) -9/Recycling (discovered 2 exits: [*Fac] / *Scr) -9/Scraptown (discovered 2 exits: *Fac x2) -6/Factory (discovered 5 exits: *Fac / *Low x2 / Ext x2) History --------- Turn | Location | Event 2 | -11/Scrapyard | Upgraded with Propulsion slot (x1) 2 | -11/Scrapyard | Upgraded with Weapon slot (x1) 10 | -11/Scrapyard | Discovered new exit (range 16) 72 | -11/Scrapyard | Entered Materials 305 | -10/Materials | Build established: Mutant 324 | -10/Materials | Discovered new exit (range 6) 404 | -10/Materials | Discovered new exit (range 16) 613 | -10/Materials | Discovered new exit (range 16) 625 | -10/Materials | Reached level 2 691 | -10/Materials | Discovered new exit (range 14) 795 | -10/Materials | Upgraded with Utility slot (x1) 795 | -10/Materials | Upgraded with Weapon slot (x1) 1047 | -10/Materials | Discovered new exit (range 7) 1104 | -10/Materials | Build established: Gunner 1203 | -10/Materials | Discovered new exit (range 11) 1443 | -10/Materials | Reached level 3 1635 | -10/Materials | Upgraded with Power slot (x1) 1635 | -10/Materials | Upgraded with Propulsion slot (x1) 1676 | -10/Materials | Build established: Tank 1761 | -10/Materials | Entered Subcaves 1763 | -10/Subcaves | Reached level 4 1772 | -10/Subcaves | Upgraded with Utility slot (x1) 1809 | -10/Subcaves | A swath of the cavern ceiling suddenly collapsed 1873 | -10/Subcaves | Discovered new exit (range 13) 1969 | -10/Subcaves | Shifting Twisted Machinery released Flamer 2005 | -10/Subcaves | Shifting Twisted Machinery released Battle Rifle 2332 | -10/Subcaves | A Subdweller sparked back to life 2332 | -10/Subcaves | A Subdweller sparked back to life 2332 | -10/Subcaves | A Subdweller sparked back to life 2384 | -10/Subcaves | Learned location of Mines (-10) 2807 | -10/Subcaves | Shifting Twisted Machinery released Sub. Machine Gun 2812 | -10/Subcaves | Shifting Twisted Machinery released Flamer 2974 | -10/Subcaves | A swath of the cavern ceiling suddenly collapsed 3402 | -10/Subcaves | Discovered new exit (range 10) 3450 | -10/Subcaves | Shifting Twisted Machinery released Spk. Treads 3452 | -10/Subcaves | Shifting Twisted Machinery released Spk. Treads 3541 | -10/Subcaves | Learned location of Zion (-6) 3868 | -10/Subcaves | Ambushed by Subdwellers from Twisted Machinery 4010 | -10/Subcaves | Discovered new exit (range 9) 4034 | -10/Subcaves | Entered Recycling 4036 | -9/Recycling | Reached level 5 4337 | -9/Recycling | Scanned before Scraplab entrance 4344 | -9/Recycling | Build established: Hacker-Tank 4644 | -9/Recycling | Discovered new exit (range 12) 4896 | -9/Recycling | Reached level 6 5475 | -9/Recycling | Reached level 7 5563 | -9/Recycling | Destroyed 7 combat bots 5635 | -9/Recycling | Upgraded with Utility slot (x1) 5734 | -9/Recycling | Entered Scraplab 5744 | -9/Recycling | Discovered new exit (range 3) 5748 | -9/Recycling | Entered Scraptown 5748 | -9/Scraptown | System corruption cleaned by C-Scrubber 5907 | -9/Scraptown | Scanned Subdweller tech in exchange for log data 5987 | -9/Scraptown | Visited UFD Registry 5987 | -9/Scraptown | Registered with UFD as "Pulseflow" 6089 | -9/Scraptown | Delivered Scrap Shield to a Scientist 6297 | -9/Scraptown | Visited Junk Repository 6341 | -9/Scraptown | Upgraded with Weapon slot (x1) 6389 | -9/Scraptown | Build established: Hacker-Gunner 6754 | -9/Scraptown | Build established: Hacker-Tank 6820 | -9/Scraptown | Discovered new exit (range 13) 6862 | -9/Scraptown | Visited Shadow of the Wyrm 6880 | -9/Scraptown | Visited TADAMA 6926 | -9/Scraptown | Visited Bundlers 7043 | -9/Scraptown | Visited SPCMW 7058 | -9/Scraptown | Visited Spacefarers 7088 | -9/Scraptown | Visited Assassins FH 7154 | -9/Scraptown | Visited Curators Association 7178 | -9/Scraptown | Received an X-ray algorithm 7190 | -9/Scraptown | Visited Junk Repository 7227 | -9/Scraptown | Visited Chapter 10 7267 | -9/Scraptown | Visited Infowarlord's Domain 7289 | -9/Scraptown | Visited A0-MCA Data Center 7309 | -9/Scraptown | Visited Botcube Research 7333 | -9/Scraptown | Visited Scrapoid Research Area 7354 | -9/Scraptown | Visited Science Guys 7957 | -9/Scraptown | Given an S rating by A0-MCA 7960 | -9/Scraptown | Found Prototype Processor 7960 | -9/Scraptown | Identified Expert System 7964 | -9/Scraptown | Found A0-MCA's Component Scanner 8324 | -9/Scraptown | Build established: Hacker-Mutant 9225 | -9/Scraptown | Build established: Hacker-Gunner 9300 | -9/Scraptown | Discovered new exit (range 5) 9308 | -9/Scraptown | Entered Factory 9309 | -6/Factory | Identified exit to Lower Caves 9310 | -6/Factory | Reached level 8 9313 | -6/Factory | Upgraded with Utility slot (x1) 9863 | -6/Factory | Reached level 9 9982 | -6/Factory | Garrison activated, responded to threat 10195 | -6/Factory | Discovered exit to Lower Caves (range 12) 10454 | -6/Factory | Identified exit to Extension 10479 | -6/Factory | Discovered new exit (range 10) 10499 | -6/Factory | Identified exit to Factory 10529 | -6/Factory | Reached level 10 10714 | -6/Factory | Garrison activated, responded to threat 10734 | -6/Factory | Expert System configures itself against Grunt targets 10774 | -6/Factory | Reached level 11 10933 | -6/Factory | Spotted B-75 Beast 10944 | -6/Factory | Core integrity fell below 50% 10952 | -6/Factory | Core integrity fell below 20% 10959 | -6/Factory | Garrison activated, responded to threat 10965 | -6/Factory | Destroyed by B-75 Beast with Heavy Plasma Cannon Last Messages --------------- 10935_ Kicked S-27 Virus out of the way. 10937_ K-01 Serf cleans the Construction Platform. 10940_ S-27 Virus destroyed. 10940_ U-05 Engineer builds a Wall. 10940_ Expert System blasted off. 10940_ K-01 Serf cleans the Construction Platform. 10942_ Component scanned: Gravity Neutralizer [A-27 Freighter]. 10944_ U-05 Engineer builds a Wall. 10949_ U-05 Engineer destroyed. 10952_ Upgraded: Core Integrity (+300) 10954_ M-28 Smith repairs S-27 Virus. 10956_ S-27 Virus destroyed. 10959_ M-28 Smith repairs U-05 Engineer Welding Torch. 10959_ S-27 Virus calls for garrison reinforcements. 10959_ ALERT: Activating Garrison Access F001. 10959_ Destroyed VTOL Module. 10959_ S-27 Virus destroyed. 10962_ U-05 Engineer builds a Wall. 10963_ S-27 Virus suffers critical hit (Burn). 10963_ S-27 Virus destroyed. Map ----- +----------------------------------------------------+ | ??????# # #?????????????????????????????????? | | ??????# ########?????????????????????????????????? | | ??????# #????????????????????????????????????????? | | ??????# #????????????????????????????????????????? | | ??????# #????????????????????????????????????????? | | ??????# #????????????????????????????????????????? | | ??????# #????????????????????????????????????????? | | ??????# #????????????????????????????????????????? | | ??????# #????????????????????????????????????????? | | ??????# #????????????????????????????????????????? | | ??????# #????????????????????????????????????????? | | ??#####+########?????????????????????????????????? | | ??# #?????????????????????????????????? | | ??# #?????????????????????????????????? | | ??# """" """" #?????????????????????????????????? | | ??# """" """" #?????????????????????????????????? | | ??# """" """" #?????????????????????????????????? | | ??# """" """" #?????????????????????????????????? | | ??# """" """" #?????????????????????????????????? | | ??# """" """" #?????????????????????????????????? | | ??# #?????????????????????????????????? | | ??# #?????????????????????????????????? | | ??# #?????????????????????????????????? | | ??# #?????????????????????????????????? | | # #######/##########################?????????????? | | # !%% %% @ s ??????? | | # s* [[% s ??????? | | + """" s s * m s ??????? | | # """"A *% u = ???????? | | # """" BB u= ???????? | | #? """" [ BB##;/###;####################??k?????? | | ???"""" # ????????????????????????????? | | ???"""" "# ? ?????????????????????????????? | | ???"""" T#?? ?????????????????????????????? | | ???? t"#? ????????????????????????????? | | ??? # ???????????????????????????? | | ??? # ??????????????????????????? | | ??## ## # ? ?????????????????????????? | | ???# ?# #??? ?????????????????????????? | | ???###?# #??? ????????????????????????? | | ??????? #??? ?????????????????????????? | | ??????? ???? ???????????????????????????? | | ???????? ???? ?????????????????????????????? | | ?????????? ??????????????????????????????????????? | | ?????????????????????????????????????????????????? | | ?????????????????????????????????????????????????? | | ?????????????????????????????????????????????????? | | ?????????????????????????????????????????????????? | | ?????????????????????????????????????????????????? | | ?????????????????????????????????????????????????? | +----------------------------------------------------+ Best States ------------- Heat Dissipation 109 Energy Generation 27 Energy Capacity 485 Matter Stores 300 Matter Capacity 300 Sight Range 18 Robot Scan Range 20 Terrain Scan Density 10 Armor Coverage 800 Resistance: EM 25 Evasion (%) 64 Energy Filtering 30 Particle Charging 27 Offensive Hacking 20 Defensive Hacking 10 Item Schematics ----------------- None Robot Schematics ------------------ None Fabricated ------------ Nothing Repaired ---------- Nothing Alien Tech Used ----------------- None Achievements -------------- None Challenges ------------ None RPGLIKE | -11 -10 -10 -9 -9 -6 --------- Run | Yrd Mat Sub Rec Scr Fac Levels Raised 10 | . 2 1 3 . 4 XP Earned 18909 | 3000 3585 2250 3750 650 5674 XP Spent 17995 | 2970 2600 1800 2500 1100 7025 Upgrades 54 | 9 4 4 5 1 31 Power Slot 1 | . 1 . . . . Propulsion Slot 2 | 1 1 . . . . Utility Slot 4 | . 1 1 1 . 1 Weapon Slot 3 | 1 1 . . 1 . Core Integrity 6 | . . . . . 6 Heat Dissipation 14 | 2 . . . . 12 Mass Support 2 | 1 . 1 . . . Inventory Capacity 1 | 1 . . . . . Sight Range 2 | . . 2 . . . Sensor Range 10 | . . . . . 10 Ranged Accuracy 3 | 3 . . . . . Hack Attack % 4 | . . . 3 . 1 Hack Defense % 2 | . . . 1 . 1 Protomatter Created 1016 | . 319 218 147 . 332 Integrity Restored 2110 | . 471 297 437 . 905 Core 1366 | . 303 185 244 . 634 Parts 744 | . 168 112 193 . 271 Protomatter Decayed 277 | . 94 169 . . 14 Game ------ Seed ColdBiometalBroadsword Manual? 0 Play Time 01:34:36 Cumulative 148.4 hours Start 2025.09.06 @ 02:53:56 End 2025.09.06 @ 05:45:40 Sessions 1 Manual Loads 0 Difficulty Rogue Special Mode Winter2019/RPGLIKE Game No. 64 Rogue 60 Adventurer 4 Explorer 0 Win Type - Total 3 Types 2/0/1/0/0/0/0/0/0/0 Lore% 62 Gallery% 49 Achievement% 53 Wizard Run 0 Options --------- Layout 0 ASCII 0 Keyboard 0 Movement Arrows Keybinds 0 Fullscreen 2 Font 32/SmallcapsGlow Map View 88x55 Zoom Use 0% Tactical HUD 1 Map Filters NONE Filters NONE Steam 1 RUN: a689897d-ca1e-44c2-b8f8-259e44c34a0e